fUST/lending_fUST_20251219
["ID","MTS","AMOUNT","RATE_DAILY","PERIOD"]
[399062656,1766094631890,-231.0,0.0002464,2]
[399062658,1766094631899,-166.841674,0.00026027,2]
[399062660,1766094631909,-300.0,0.00026848,2]
[399062662,1766094631917,-208.835367,0.0003411,60]
[399062664,1766094631926,-14.45390372,0.0003437,30]
[399062666,1766094631938,-985.54609628,0.0003437,30]
[399062668,1766094631950,-162.73858542,0.00037603,60]
[399062671,1766094631962,-1200.0,0.00038355,5]
[399062673,1766094631974,-166.841674,0.00038356,2]
[399062675,1766094631986,-365.63364733,0.00038379,2]
[399062677,1766094631997,-3618.85569927,0.00038578,2]
[399062679,1766094632008,-193.492,0.00038583,52]
[399062681,1766094632018,-500.0,0.00038677,15]
[399062683,1766094632028,-500.0,0.00038677,15]
[399062685,1766094632039,-160.25986846,0.00038677,15]
[399062687,1766094632049,-500.0,0.00038677,15]
[399062689,1766094632061,-500.0,0.00038677,15]
[399062691,1766094632072,-92.25308339,0.00038677,15]
[399062694,1766094632086,-407.74691661,0.00038677,15]
[399062696,1766094632097,-500.0,0.00038677,15]
[399062698,1766094632108,-500.0,0.00038677,15]
[399062700,1766094632119,-500.0,0.00038677,15]
[399062702,1766094632130,-500.0,0.00038677,15]
[399062704,1766094632141,-500.0,0.00038677,15]
[399062707,1766094632152,-500.0,0.00038677,15]
[399062709,1766094632163,-500.0,0.00038677,15]
[399062711,1766094632175,-500.0,0.00038677,15]
[399062713,1766094632185,-500.0,0.00038677,15]
[399062715,1766094632196,-530.64383784,0.00038677,15]
[399062717,1766094632207,-500.0,0.00038677,15]
[399062720,1766094632217,-500.0,0.00038677,15]
[399062722,1766094632230,-500.0,0.00038677,15]
[399062724,1766094632241,-500.0,0.00038677,15]
[399062726,1766094632251,-404.24281571,0.00038677,15]
[399062728,1766094632262,-200.86292588,0.00038677,15]
[399062731,1766094632274,-362.07844798,0.00038677,15]
[399062733,1766094632285,-500.0,0.00038677,15]
[399062735,1766094632296,-500.0,0.00038677,15]
[399062737,1766094632307,-301.50364429,0.00038677,15]
[399062794,1766094637922,-198.49635571,0.00038677,15]
[399062796,1766094637933,-500.0,0.00038677,15]
[399062798,1766094637943,-500.0,0.00038677,15]
[399062800,1766094637953,-500.0,0.00038677,15]
[399062802,1766094637963,-500.0,0.00038677,15]
[399062804,1766094637973,-500.0,0.00038677,15]
[399062806,1766094637984,-500.0,0.00038677,15]
[399062809,1766094637994,-500.0,0.00038677,15]
[399062811,1766094638005,-500.0,0.00038677,15]
[399062813,1766094638015,-500.0,0.00038677,15]
[399062815,1766094638026,-500.0,0.00038677,15]
[399062817,1766094638036,-170.05804306,0.00038677,15]
[399062820,1766094638055,-329.94195694,0.00038677,15]
[399062822,1766094638065,-500.0,0.00038677,15]
[399062824,1766094638076,-500.0,0.00038677,15]
[399062826,1766094638087,-500.0,0.00038677,15]
[399062828,1766094638096,-500.0,0.00038677,15]
[399062830,1766094638107,-500.0,0.00038677,15]
[399062832,1766094638116,-500.0,0.00038677,15]
[399062834,1766094638127,-166.55804306,0.00038677,15]
[399062837,1766094638139,-333.44195694,0.00038677,15]
[399062839,1766094638151,-53.06804306,0.00038677,15]
[399063036,1766094640038,-446.93195694,0.00038677,15]
[399063039,1766094640048,-500.0,0.00038677,15]
[399063041,1766094640059,-500.0,0.00038677,15]
[399063042,1766094640069,-500.0,0.00038677,15]
[399063043,1766094640079,-500.0,0.00038677,15]
[399063044,1766094640089,-500.0,0.00038677,15]
[399063045,1766094640097,-359.32095723,0.00038677,15]
[399063046,1766094640107,-383.5,0.00038677,15]
[399063047,1766094640116,-500.0,0.00038677,15]
[399063048,1766094640125,-500.0,0.00038677,15]
[399063050,1766094640134,-500.0,0.00038677,15]
[399063052,1766094640143,-500.0,0.00038677,15]
[399063053,1766094640152,-500.0,0.00038677,15]
[399063054,1766094640162,-500.0,0.00038677,15]
[399063055,1766094640172,-500.0,0.00038677,15]
[399063056,1766094640181,-500.0,0.00038677,15]
[399063057,1766094640190,-500.0,0.00038677,15]
[399063058,1766094640199,-500.0,0.00038677,15]
[399063059,1766094640208,-500.0,0.00038677,15]
[399063060,1766094640417,-500.0,0.00038677,15]
[399063061,1766094640429,-500.0,0.00038677,15]
[399063062,1766094640438,-500.0,0.00038677,15]
[399063063,1766094640450,-500.0,0.00038677,15]
[399063064,1766094640459,-500.0,0.00038677,15]
[399063066,1766094640469,-500.0,0.00038677,15]
[399063068,1766094640478,-500.0,0.00038677,15]
[399063070,1766094640487,-500.0,0.00038677,15]
[399063072,1766094640495,-500.0,0.00038677,15]
[399063074,1766094640504,-600.0,0.00039355,60]
[399063076,1766094640513,-13981.18877924,0.00040366,30]
[399063134,1766094643240,-3334.81122076,0.00040366,30]
[399063135,1766094643249,-208.835367,0.00040959,60]
[399063136,1766094643258,-720.0,0.0004329,60]
[399063137,1766094643269,-5000.0,0.0004459,2]
[399063138,1766094643278,-220.27644248,0.00045039,120]
[399063139,1766094643287,-388.93982966,0.00045039,7]
[399063149,1766094646167,-111.06017034,0.00045039,7]
[399063150,1766094646176,-249.85670852,0.00045039,120]
[399063151,1766094646186,-500.0,0.00045039,7]
[399063152,1766094646195,-643.1137529,0.00045039,7]
[399063153,1766094646204,-45301.13675463,0.0004504,2]
[399063154,1766094646215,-677.35,0.0004504,2]
[399063155,1766094646231,-900.10683841,0.0004504,2]
[399063304,1766094966525,10000.01,0.00018192,2]
[399063305,1766094966556,2.97405966,0.00018192,2]
[399063313,1766094977090,150.0,0.00011494,2]
[399063314,1766094977497,150.0,0.00012042,2]
[399063315,1766094977916,161.84,0.00012589,2]
[399063316,1766094978306,215.79,0.00013136,2]
[399063317,1766094978736,269.73,0.00013684,2]
[399063318,1766094979141,323.68,0.00014231,2]
[399063319,1766094979565,377.63,0.00014779,2]
[399063320,1766094980304,431.57,0.00015326,2]
[399063321,1766094980395,485.52,0.00015873,2]
[399063322,1766094980792,539.47,0.00016421,2]
[399063345,1766095031134,500.0,0.00013273,2]
[399063346,1766095032707,500.0,0.00013273,2]
[399063347,1766095034557,425.74949727,0.00013699,2]
[399063348,1766095034673,500.0,0.00013273,2]
[399063349,1766095037819,500.0,0.00013699,2]
[399063350,1766095037855,1099.54987091,0.00014247,2]
[399063390,1766095048995,150.0,8.52e-05,2]
[399063392,1766095049448,150.0,8.926e-05,2]
[399063394,1766095050395,156.41,9.332e-05,2]
[399063395,1766095050818,208.55,9.737e-05,2]
[399063397,1766095051449,260.68,0.00010143,2]
[399063398,1766095051680,312.82,0.00010549,2]
[399063399,1766095052067,364.96,0.00010955,2]
[399063401,1766095052461,417.1,0.0001136,2]
[399063402,1766095052857,469.23,0.00011766,2]
[399063403,1766095053263,521.37,0.00012172,2]
[399063486,1766095087013,501.56179094,0.00013273,2]
[399063495,1766095089841,500.0,0.00013699,2]
[399063498,1766095091729,260.82692028,0.00013273,2]
[399063516,1766095120901,150.0,8.53e-05,2]
[399063517,1766095121333,150.0,8.936e-05,2]
[399063518,1766095121759,150.0,9.342e-05,2]
[399063519,1766095122182,150.0,9.748e-05,2]
[399063520,1766095122709,150.0,0.00010154,2]
[399063521,1766095123064,150.0,0.00010561,2]
[399063522,1766095123468,150.0,0.00010967,2]
[399063582,1766095247189,5000.0,0.00018192,2]
[399063593,1766095271425,2687.62128878,0.00018192,2]
[399063594,1766095271453,2312.37871122,0.00018192,2]
[399063603,1766095294792,5000.0,0.00018192,2]
[399063615,1766095317504,2687.63128878,0.00018192,2]
[399063616,1766095317527,2312.36871122,0.00018192,2]
[399063674,1766095340543,5000.0,0.00018192,2]
[399063697,1766095350921,163.52,0.0001,2]
[399063706,1766095462583,-5000.0,0.0001818,2]
[399063707,1766095468539,-5000.0,0.00018364,2]
[399063708,1766095472777,-708.96369177,0.0001818,2]
[399063709,1766095474674,-828.38501307,0.0001818,2]
[399063710,1766095474703,-300.0,0.00018735,2]
[399063711,1766095474731,-300.0,0.00018736,2]
[399063712,1766095474760,-495.8359377,0.00018737,2]
[399063713,1766095474802,-235.32125685,0.00018737,2]
[399063714,1766095474837,-367.65252345,0.00018738,2]
[399063715,1766095474870,-594.5098783,0.00018738,2]
[399063716,1766095474902,-188.10094379,0.00018738,2]
[399063717,1766095474934,-300.0,0.00020427,2]
[399063718,1766095474964,-495.8359377,0.0002365,2]
[399063719,1766095474995,-367.65252345,0.00023651,2]
[399063720,1766095475025,-458.91209308,0.00023651,2]
[399063721,1766095478321,-370.60461357,0.00017998,2]
[399063722,1766095484205,-262.70228829,0.00017998,2]
[399063723,1766095487231,-228.04084515,0.00017998,2]
[399063724,1766095492654,861.34774701,0.00017994,2]
[399063725,1766095494928,-276.43256053,0.00017998,2]
[399063726,1766095500240,-159.25955032,0.00017998,2]
[399063727,1766095504323,-190.80803293,0.00017998,2]
[399063728,1766095504384,500.0,0.00013273,2]
[399063734,1766095509446,193.14,0.00013324,2]
[399063735,1766095509854,386.27,0.00013959,2]
[399063736,1766095510162,-441.50860043,0.00017998,2]
[399063737,1766095510278,579.41,0.00014593,2]
[399063738,1766095510684,772.54,0.00015228,2]
[399063739,1766095511211,965.68,0.00015862,2]
[399063740,1766095511627,1158.82,0.00016497,2]
[399063741,1766095512031,1351.95,0.00017131,2]
[399063742,1766095512428,1545.09,0.00017766,2]
[399063745,1766095515483,626.50014378,0.00017994,2]
[399063746,1766095517209,-266.59628977,0.00017998,2]
[399063747,1766095520155,-219.29610698,0.00017998,2]
[399063749,1766095525017,-160.5538696,0.00017998,2]
[399063750,1766095529459,-161.19502046,0.00017998,2]
[399063751,1766095532768,-152.28097621,0.00017998,2]
[399063754,1766095535891,-271.1823255,0.00017998,2]
[399063759,1766095540213,1059.26210921,0.00017994,2]
[399063760,1766095540241,342.16875424,0.00017994,2]
[399063761,1766095540657,-492.40573881,0.00017998,2]
[399063762,1766095542932,-261.35192524,0.00017998,2]
[399063768,1766095545010,-206.44085261,0.00017998,2]
[399063769,1766095549497,-172.93827778,0.00017998,2]
[399063770,1766095552776,-254.61047468,0.00017998,2]
[399063771,1766095558468,-161.38,0.00017998,2]
[399063772,1766095561241,-226.0902851,0.00017998,2]
[399063773,1766095563285,763.58806431,0.00017994,2]
[399063888,1766095661226,5000.0,0.00017994,2]
[399063980,1766095804047,500.80695146,0.00013699,2]
[399064019,1766095831949,-551.15446361,0.0001894,2]
[399064024,1766095832008,-4448.84553639,0.0001894,2]
[399064026,1766095832018,-702.0,0.0001894,2]
[399064028,1766095832027,-150.0,0.00019163,2]
[399064030,1766095832036,-177.0,0.00021163,2]
[399064033,1766095832045,-765.0,0.00023077,2]
[399064035,1766095832054,-204.0,0.00023163,2]
[399064037,1766095832063,-234.07,0.00023586,2]
[399064038,1766095832072,-300.0,0.00023601,2]
[399064039,1766095832082,-300.0,0.00023602,120]
[399064040,1766095832091,-300.0,0.00023602,120]
[399064041,1766095832100,-300.0,0.00023602,120]
[399064042,1766095832110,-300.0,0.00023602,120]
[399064043,1766095832120,-300.0,0.00023602,120]
[399064044,1766095832129,-300.0,0.00023602,120]
[399064045,1766095832138,-162.68,0.00023602,120]
[399064046,1766095832147,-135.59778522,0.00023651,2]
[399064047,1766095832156,-468.14,0.00024709,2]
[399064048,1766095832165,-231.0,0.00025163,2]
[399064049,1766095832174,-702.21,0.00025832,2]
[399064050,1766095832183,-936.28,0.00026956,2]
[399064051,1766095832192,-184.06177411,0.00027163,2]
[399064052,1766095832201,-1170.35,0.00028079,2]
[399064053,1766095832210,-1404.42,0.00029202,2]
[399064054,1766095832219,-765.67307,0.00029289,2]
[399064055,1766095832227,-1638.49,0.00030325,2]
[399064056,1766095832236,-600.0,0.00032918,30]
[399064057,1766095832245,-720.0,0.0003621,30]
[399064058,1766095832255,-495.8359377,0.00038387,2]
[399064059,1766095832264,-367.65252345,0.0003839,2]
[399064060,1766095832273,-594.5098783,0.0003839,2]
[399064061,1766095832282,-188.10094379,0.0003839,2]
[399064062,1766095832291,-864.0,0.00039831,60]
[399064063,1766095832300,-184.58763854,0.0004044,120]
[399064064,1766095832309,-39969.9407335,0.0004044,120]
[399064065,1766095832319,-508.19691927,0.0004044,120]
[399064066,1766095832328,-508.19691927,0.0004044,120]
[399064067,1766095832337,-508.19691927,0.0004044,120]
[399064068,1766095832346,-508.19691927,0.0004044,120]
[399064069,1766095832355,-508.19691927,0.0004044,120]
[399064070,1766095832365,-508.19691927,0.0004044,120]
[399064071,1766095832376,-508.19691927,0.0004044,120]
[399064072,1766095832385,-508.19691927,0.0004044,120]
[399064073,1766095832394,-508.19691927,0.0004044,120]
[399064074,1766095832403,-508.19691927,0.0004044,120]
[399064075,1766095832412,-508.19691927,0.0004044,120]
[399064076,1766095832421,-508.19691927,0.0004044,120]
[399064077,1766095832430,-508.19691927,0.0004044,120]
[399064078,1766095832440,-508.19691927,0.0004044,120]
[399064079,1766095832449,-293.9430826,0.0004044,120]
[399064080,1766095832458,-169.39897308,0.0004044,120]
[399064081,1766095832467,-169.39897308,0.0004044,120]
[399064082,1766095832476,-169.39897308,0.0004044,120]
[399064083,1766095832485,-251.193,0.00041343,2]
[399064084,1766095832494,-250.147,0.00041343,2]
[399064085,1766095832504,-150.509,0.00041343,2]
[399064086,1766095832513,-150.266,0.00041343,2]
[399064087,1766095832522,-231.611,0.00041343,2]
[399064088,1766095832531,-150.0,0.00041343,2]
[399064089,1766095832541,-2000.0,0.00043289,15]
[399064090,1766095832550,-1000.0,0.00043814,60]
[399064091,1766095832559,-765.67307,0.00043933,2]
[399064092,1766095832568,-4984.778703,0.0004399,2]
[399064093,1766095838016,-1872.56,0.00031448,2]
[399064094,1766095838025,-950.24,0.00032571,2]
[399064095,1766095838037,-832.12920319,0.00032571,2]
[399064096,1766095838048,-324.27079681,0.00032571,2]
[399064097,1766095838057,-2340.71,0.00033695,2]
[399064098,1766095838067,-29.26741119,0.0004399,2]
[399064099,1766095838106,-2232.11993864,0.0004399,2]
[399064100,1766095838115,-651.34204978,0.0004434,31]
[399064101,1766095838124,-500.0,0.0004434,120]
[399064102,1766095838134,-431.5,0.0004434,120]
[399064103,1766095838143,-500.0,0.0004434,120]
[399064104,1766095838152,-500.0,0.0004434,120]
[399064105,1766095838161,-355.65143621,0.0004434,120]
[399064106,1766095838171,-651.03566191,0.0004434,120]
[399064107,1766095838179,-24915.08294129,0.00044341,2]
[399064108,1766095838189,-150.0,0.00044343,2]
[399064109,1766095838198,-3166.49873687,0.00044839,28]
[399064110,1766095838207,-999.13313325,0.00044939,6]
[399064111,1766095838216,-154.19350974,0.00044939,120]
[399064112,1766095838225,-500.0,0.00044939,7]
[399064113,1766095838235,-275.5556911,0.00044939,120]
[399064114,1766095838244,-650.17962703,0.00044939,7]
[399064115,1766095838252,-890000.0,0.0004494,2]
[399064116,1766095838261,-490.67179083,0.0004494,2]
[399064117,1766095838270,-1001.0,0.00045,30]
[399064118,1766095838280,-23711.91825133,0.00045,120]
[399064119,1766095838291,-356.87099803,0.00045,120]
[399064120,1766095838309,-1920.14731643,0.00045,120]
[399064121,1766095838320,-1517.68091614,0.00045,120]
[399064122,1766095838331,-418.70525394,0.00045,120]
[399064123,1766095838343,-871.34293494,0.00045,120]
[399064124,1766095838352,-154.793,0.00045,72]
[399064125,1766095838363,-2000.0,0.00045038,15]
[399064126,1766095838372,-606.33299742,0.00045038,7]
[399064127,1766095838390,-1393.66700258,0.00045038,7]
[399064128,1766095838399,-181.37807593,0.00045038,120]
[399064129,1766095838408,-2000.0,0.00045039,2]
[399064130,1766095838417,-905.13,0.000452,2]
[399064131,1766095838427,-237.5825631,0.000452,30]
[399064132,1766095838439,-133.6574369,0.000452,30]
[399064133,1766095838449,-169.93,0.000452,14]
[399064134,1766095838458,-500.0,0.0004544,17]
[399064135,1766095838468,-124.18670133,0.0004655,120]
[399064137,1766095838480,-244.81329867,0.0004655,120]
[399064139,1766095838489,-155.3646378,0.00046849,30]
[399064141,1766095838498,-153.0,0.00047671,30]
[399064142,1766095838507,-208.835367,0.00047808,60]
[399064144,1766095838517,-150.0,0.00048,120]
[399064145,1766095838526,-43.20923496,0.00048196,120]
[399064148,1766095838537,-956.79076504,0.00048196,120]
[399064150,1766095838546,-63.69427813,0.00048196,120]
[399064152,1766095838557,-180.30572187,0.00048196,120]
[399064154,1766095838566,-2149.64772755,0.0004851,30]
[399064156,1766095838577,-557.69832396,0.0004851,30]
[399064158,1766095838588,-2096.16,0.0004851,30]
[399064293,1766095840072,-2109.60784002,0.0004851,30]
[399064294,1766095840135,-485.93709831,0.0004851,30]
[399064295,1766095840146,-1757.62581845,0.0004851,30]
[399064296,1766095840157,-18376.8,0.0004851,30]
[399064304,1766095840363,-3e-08,0.0004851,30]
[399064306,1766095840374,-11291.44,0.0004851,30]
[399064309,1766095840384,-29068.36065008,0.0004851,30]
[399064590,1766095843010,-3381.52204743,0.0004851,30]
[399064603,1766095843121,-1147.5,0.0004851,30]
[399064605,1766095843134,-24915.08294029,0.0004851,30]
[399064607,1766095843145,-451.24,0.0004851,30]
[399064873,1766095846292,-1719.16982004,0.0004851,30]
[399064880,1766095846354,-677.29003737,0.0004851,30]
[399064897,1766095846502,-306.72417695,0.0004851,30]
[399064948,1766095846997,-21426.65348868,0.0004851,30]
[399065818,1766095999197,150.0,8.53e-05,2]
[399065819,1766095999612,224.35,8.936e-05,2]
[399065820,1766096000013,336.52,9.342e-05,2]
[399065821,1766096000447,448.7,9.748e-05,2]
[399065822,1766096000908,560.87,0.00010154,2]
[399065823,1766096001332,673.04,0.00010561,2]
[399065824,1766096001776,785.22,0.00010967,2]
[399065825,1766096002170,897.39,0.00011373,2]
[399065826,1766096002575,1009.57,0.00011779,2]
[399065829,1766096002981,1121.74,0.00012185,2]
[399065869,1766096072610,150.0,0.00013179,2]
[399065870,1766096073014,150.0,0.00013807,2]
[399065871,1766096073426,150.0,0.00014434,2]
[399065872,1766096073840,150.0,0.00015062,2]
[399065873,1766096074253,165.85,0.0001569,2]
[399065874,1766096074654,199.02,0.00016317,2]
[399065875,1766096075047,232.2,0.00016945,2]
[399065876,1766096075480,265.37,0.00017572,2]
[399065878,1766096142604,150.0,0.00013166,2]
[399065879,1766096143025,150.0,0.00013793,2]
[399065880,1766096143424,150.0,0.0001442,2]
[399065881,1766096143843,150.0,0.00015047,2]
[399065882,1766096144261,150.0,0.00015674,2]
[399065883,1766096144660,150.0,0.00016301,2]
[399065884,1766096145097,150.0,0.00016928,2]
[399065888,1766096405978,500.0,0.00013273,2]
[399065889,1766096406042,1000.0,0.00013821,2]
[399065935,1766096779543,-300.0,0.00022639,120]
[399065936,1766096779568,-150.0,0.00041285,120]
[399065937,1766096779590,-167.0,0.00041539,120]
[399065938,1766096779613,-177.0,0.00043285,120]
[399065939,1766096779634,-167.0,0.00043616,120]
[399065940,1766096779657,-179.55612335,0.00045285,120]
[399065941,1766096779681,-500.0,0.00045361,120]
[399065942,1766096779704,-500.0,0.00045361,120]
[399065943,1766096779727,-425.71770423,0.00045361,120]
[399065944,1766096779750,-500.0,0.00045361,120]
[399065945,1766096779773,-500.0,0.00045361,120]
[399065946,1766096779796,-482.58650104,0.00045361,120]
[399065947,1766096779816,-167.0,0.00045796,120]
[399065948,1766096779838,-1035.19893314,0.000459,120]
[399065949,1766096779864,-720.0,0.00046322,120]
[399065950,1766096779884,-167.0,0.00048086,120]
[399065951,1766096779905,-42711.64286849,0.0004831,120]
[399065952,1766096779926,-192.88898377,0.00048409,120]
[399065953,1766096779947,-350.0,0.00049205,120]
[399065954,1766096779966,-500.0,0.00049315,120]
[399065955,1766096779987,-520.0,0.00049315,120]
[399065956,1766096780008,-500.0,0.00049315,120]
[399065957,1766096780032,-500.0,0.00049315,120]
[399065958,1766096780054,-500.0,0.00049315,120]
[399065959,1766096780074,-500.0,0.00049315,120]
[399065960,1766096780093,-500.0,0.00049315,120]
[399065961,1766096780114,-500.0,0.00049315,120]
[399065962,1766096780134,-500.0,0.00049315,120]
[399065963,1766096780154,-500.0,0.00049315,120]
[399065964,1766096780178,-429.97,0.00049315,120]
[399065965,1766096780200,-500.0,0.00049315,120]
[399065966,1766096780222,-500.0,0.00049315,120]
[399065967,1766096780243,-500.0,0.00049315,120]
[399065968,1766096780264,-500.0,0.00049315,120]
[399065969,1766096780285,-500.0,0.00049315,120]
[399065970,1766096780305,-174.63805075,0.00049315,120]
[399065971,1766096780326,-500.0,0.00049315,120]
[399065972,1766096780347,-500.0,0.00049315,120]
[399065973,1766096780367,-500.0,0.00049315,120]
[399065974,1766096780390,-500.0,0.00049315,120]
[399065975,1766096780411,-500.89291822,0.00049315,120]
[399065976,1766096780431,-500.0,0.00049315,120]
[399065977,1766096780451,-500.0,0.00049315,120]
[399065978,1766096780470,-500.0,0.00049315,120]
[399065979,1766096780490,-500.0,0.00049315,120]
[399065980,1766096780511,-501.19971782,0.00049315,120]
[399065981,1766096780531,-501.98207752,0.00049315,120]
[399065982,1766096780551,-352.36245836,0.00049315,120]
[399065983,1766096780571,-500.0,0.00049315,120]
[399065984,1766096780591,-500.07307184,0.00049315,120]
[399065985,1766096780611,-502.00382185,0.00049315,120]
[399065986,1766096780631,-500.2889274,0.00049315,120]
[399065987,1766096780651,-624.42533391,0.00049315,120]
[399065988,1766096780671,-500.0,0.00049315,120]
[399065989,1766096780692,-501.81853308,0.00049315,120]
[399065990,1766096780712,-500.32277671,0.00049315,120]
[399065991,1766096780732,-500.90173831,0.00049315,120]
[399065992,1766096780752,-500.0,0.00049315,120]
[399065993,1766096780775,-500.0,0.00049315,120]
[399065994,1766096780796,-500.56190396,0.00049315,120]
[399065995,1766096780816,-500.0,0.00049315,120]
[399065996,1766096780835,-500.0,0.00049315,120]
[399065997,1766096780856,-500.0,0.00049315,120]
[399065998,1766096780875,-970.79,0.00049315,120]
[399065999,1766096780896,-500.0,0.00049315,120]
[399066000,1766096780916,-500.0,0.00049315,120]
[399066001,1766096780936,-784.35,0.00049315,120]
[399066002,1766096780958,-500.0,0.00049315,120]
[399066003,1766096780977,-500.0,0.00049315,120]
[399066004,1766096780998,-500.0,0.00049315,120]
[399066005,1766096781018,-500.0,0.00049315,120]
[399066006,1766096781039,-503.36288254,0.00049315,120]
[399066007,1766096781059,-500.0,0.00049315,120]
[399066008,1766096781080,-500.82379093,0.00049315,120]
[399066009,1766096781101,-500.0,0.00049315,120]
[399066010,1766096781126,-501.06408177,0.00049315,120]
[399066011,1766096781149,-500.0,0.00049315,120]
[399066012,1766096781177,-500.44564229,0.00049315,120]
[399066013,1766096781199,-500.0,0.00049315,120]
[399066014,1766096781224,-500.0,0.00049315,120]
[399066015,1766096781248,-500.0,0.00049315,120]
[399066016,1766096781272,-500.0,0.00049315,120]
[399066017,1766096781294,-500.0,0.00049315,120]
[399066018,1766096781316,-500.0,0.00049315,120]
[399066019,1766096781336,-500.0,0.00049315,120]
[399066020,1766096781357,-500.0,0.00049315,120]
[399066021,1766096781379,-500.0,0.00049315,120]
[399066022,1766096781401,-1254.72,0.00049315,120]
[399066023,1766096781423,-500.0,0.00049315,120]
[399066024,1766096781443,-500.0,0.00049315,120]
[399066025,1766096781463,-500.0,0.00049315,120]
[399066026,1766096781483,-506.12,0.00049315,120]
[399066027,1766096781503,-500.0,0.00049315,120]
[399066028,1766096781523,-501.74568497,0.00049315,120]
[399066029,1766096781545,-500.0,0.00049315,120]
[399066030,1766096781566,-500.0,0.00049315,120]
[399066031,1766096781587,-500.0,0.00049315,120]
[399066032,1766096781607,-500.0,0.00049315,120]
[399066033,1766096781627,-500.0,0.00049315,120]
[399066034,1766096781648,-500.0,0.00049315,120]
[399066035,1766096781667,-500.0,0.00049315,120]
[399066036,1766096781687,-392.95607304,0.00049315,120]
[399066037,1766096781707,-500.0,0.00049315,120]
[399066038,1766096781727,-500.0,0.00049315,120]
[399066039,1766096781748,-500.0,0.00049315,120]
[399066040,1766096781768,-500.0,0.00049315,120]
[399066041,1766096781788,-500.0,0.00049315,120]
[399066042,1766096781808,-500.0,0.00049315,120]
[399066043,1766096781828,-500.0,0.00049315,120]
[399066044,1766096781849,-500.0,0.00049315,120]
[399066045,1766096781870,-500.0,0.00049315,120]
[399066046,1766096781891,-500.0,0.00049315,120]
[399066047,1766096781912,-500.0,0.00049315,120]
[399066048,1766096781932,-500.0,0.00049315,120]
[399066049,1766096781952,-500.0,0.00049315,120]
[399066050,1766096781972,-500.0,0.00049315,120]
[399066051,1766096781992,-500.0,0.00049315,120]
[399066052,1766096782013,-500.0,0.00049315,120]
[399066053,1766096782034,-500.0,0.00049315,120]
[399066054,1766096782055,-500.0,0.00049315,120]
[399066055,1766096782076,-500.0,0.00049315,120]
[399066056,1766096782096,-221.58820722,0.00049315,120]
[399066057,1766096782117,-500.0,0.00049315,120]
[399066058,1766096782138,-500.0,0.00049315,120]
[399066059,1766096782160,-500.0,0.00049315,120]
[399066060,1766096782184,-500.0,0.00049315,120]
[399066061,1766096782205,-500.0,0.00049315,120]
[399066062,1766096782226,-500.0,0.00049315,120]
[399066063,1766096782248,-215.02,0.00049315,120]
[399066064,1766096782268,-500.0,0.00049315,120]
[399066065,1766096782288,-500.0,0.00049315,120]
[399066066,1766096782309,-500.0,0.00049315,120]
[399066067,1766096782329,-500.0,0.00049315,120]
[399066068,1766096782349,-500.0,0.00049315,120]
[399066069,1766096782370,-500.0,0.00049315,120]
[399066070,1766096782390,-400.0,0.00049315,120]
[399066071,1766096782411,-500.0,0.00049315,120]
[399066072,1766096782435,-500.0,0.00049315,120]
[399066073,1766096782455,-500.0,0.00049315,120]